bitfinex/quotes_BTCUSD_20240623
["timestamp","ask_amount","ask_price","bid_price","bid_amount"]
[1719119099218,2.71381729,64500.0,64499.0,2.10243304]
[1719119099376,2.71381729,64500.0,64499.0,2.23123043]
[1719119099576,2.71381729,64500.0,64499.0,2.10243304]
[1719119099800,2.71381729,64500.0,64499.0,2.23123043]
[1719119100001,2.71381729,64500.0,64499.0,2.10243304]
[1719119102418,2.71381729,64500.0,64499.0,1.90923304]
[1719119102608,2.71381729,64500.0,64499.0,1.96113304]
[1719119115718,2.71381729,64500.0,64499.0,1.90923304]
[1719119116046,2.71381729,64500.0,64499.0,1.96113304]
[1719119138894,2.70881729,64500.0,64499.0,1.96113304]
[1719119140102,2.39176386,64500.0,64499.0,1.96113304]
[1719119147764,2.39176386,64500.0,64499.0,1.90923304]
[1719119147954,2.39176386,64500.0,64499.0,1.96113304]
[1719119149665,2.39176386,64500.0,64499.0,1.94713304]
[1719119149849,2.39176386,64500.0,64499.0,1.96113304]
[1719119150471,2.39176386,64500.0,64499.0,1.93313304]
[1719119150718,2.39176386,64500.0,64499.0,1.96113304]
[1719119151285,2.39176386,64500.0,64499.0,1.90923304]
[1719119151485,2.39176386,64500.0,64499.0,1.96113304]
[1719119169818,2.39176386,64500.0,64499.0,1.95339304]
[1719119170425,2.1378508,64500.0,64499.0,1.95339304]
[1719119180042,2.1378508,64500.0,64499.0,2.09619304]
[1719119181228,2.1378508,64500.0,64499.0,2.08219304]
[1719119181694,2.1378508,64500.0,64499.0,2.09619304]
[1719119181910,2.1378508,64500.0,64499.0,2.2109885]
[1719119182044,2.1378508,64500.0,64499.0,2.08219304]
[1719119182251,2.1378508,64500.0,64499.0,2.09619304]
[1719119182691,2.1378508,64500.0,64499.0,2.08219304]
[1719119182899,2.1378508,64500.0,64499.0,2.21098939]
[1719119183103,2.1378508,64500.0,64499.0,2.22498939]
[1719119183356,2.1378508,64500.0,64499.0,2.09619304]
[1719119195634,2.1378508,64500.0,64499.0,2.08787568]
[1719119195902,2.1378508,64500.0,64499.0,2.0965421]
[1719119204025,2.1378508,64500.0,64499.0,1.9537421]
[1719119204397,2.1378508,64500.0,64499.0,2.0973421]
[1719119206045,2.1378508,64500.0,64499.0,2.0337421]
[1719119211849,2.1378508,64500.0,64499.0,1.9018421]
[1719119212083,2.1378508,64500.0,64499.0,1.9537421]
[1719119290967,1.819709,64500.0,64499.0,1.9537421]
[1719119319094,1.819709,64500.0,64499.0,1.2917601]
[1719119319244,1.958409,64500.0,64499.0,0.9816781]
[1719119320709,1.958409,64500.0,64499.0,0.9676781]
[1719119320912,1.958409,64500.0,64499.0,0.9816781]
[1719119321117,1.958409,64500.0,64499.0,0.9676781]
[1719119321855,1.958409,64500.0,64499.0,0.9816781]
[1719119322209,1.958409,64500.0,64499.0,0.9536781]
[1719119322610,1.958409,64500.0,64499.0,0.9676781]
[1719119322809,1.958409,64500.0,64499.0,0.9536781]
[1719119323245,1.958409,64500.0,64499.0,0.9676781]
[1719119324527,1.958409,64500.0,64499.0,0.9536781]
[1719119324734,1.958409,64500.0,64499.0,0.9676781]
[1719119324957,1.958409,64500.0,64499.0,0.9446781]
[1719119325157,1.958409,64500.0,64499.0,0.9586781]
[1719119331673,1.958409,64500.0,64499.0,0.46672395]
[1719119332556,1.958409,64500.0,64499.0,0.4835551]
[1719119332757,1.958409,64500.0,64499.0,0.46672395]
[1719119334983,1.958409,64500.0,64499.0,0.6485961]
[1719119335187,1.958409,64500.0,64499.0,0.62176495]
[1719119338083,1.958409,64500.0,64499.0,0.6485961]
[1719119340374,1.958409,64500.0,64499.0,0.9586781]
[1719119343094,1.63747026,64500.0,64499.0,0.9586781]
[1719119357313,1.63747026,64500.0,64499.0,1.2687601]
[1719119359198,1.57497026,64500.0,64499.0,1.2687601]
[1719119369348,1.57497026,64500.0,64499.0,1.2587601]
[1719119369564,1.6215464,64500.0,64499.0,1.2587601]
[1719119370137,1.62155266,64500.0,64499.0,1.2587601]
[1719119370702,1.57497026,64500.0,64499.0,1.2587601]
[1719119370955,1.70944386,64500.0,64499.0,0.5385961]
[1719119371147,1.63957026,64500.0,64499.0,0.3835551]
[1719119371324,1.7327174,64500.0,64499.0,0.3835551]
[1719119371623,1.63957026,64500.0,64499.0,0.3835551]
[1719119372677,1.88773847,64500.0,64499.0,0.3835551]
[1719119373173,1.88773823,64500.0,64499.0,0.3835551]
[1719119373599,1.88772477,64500.0,64499.0,0.3835551]
[1719119374202,1.88772477,64500.0,64499.0,0.3695551]
[1719119374420,1.88772477,64500.0,64499.0,0.3835551]
[1719119374849,1.88771496,64500.0,64499.0,0.3835551]
[1719119375043,1.88771496,64500.0,64499.0,0.3695551]
[1719119375247,1.79460826,64500.0,64499.0,0.3695551]
[1719119375541,1.79460826,64500.0,64499.0,0.3835551]
[1719119375870,1.79460826,64500.0,64499.0,0.36088868]
[1719119376040,1.79460826,64500.0,64499.0,0.38452753]
[1719119378257,1.86441637,64500.0,64499.0,0.38452753]
[1719119379476,1.86441167,64500.0,64499.0,0.38452753]
[1719119381174,1.79460826,64500.0,64499.0,0.38452753]
[1719119381468,1.86440798,64500.0,64499.0,0.38452753]
[1719119382704,1.79460826,64500.0,64499.0,0.38452753]
[1719119384564,1.79460826,64500.0,64499.0,0.38424966]
[1719119385383,1.86439399,64500.0,64499.0,0.38424966]
[1719119385839,1.79460826,64500.0,64499.0,0.38424966]
[1719119387740,1.86438919,64500.0,64499.0,0.38424966]
[1719119388978,1.86438592,64500.0,64499.0,0.38424966]
[1719119392065,1.79460826,64500.0,64499.0,0.38424966]
[1719119392271,1.86438381,64500.0,64499.0,0.38424966]
[1719119392481,1.79460826,64500.0,64499.0,0.38424966]
[1719119392682,1.86438314,64500.0,64499.0,0.38424966]
[1719119395019,1.79460826,64500.0,64499.0,0.38424966]
[1719119395167,1.86438283,64500.0,64499.0,0.38424966]
[1719119397404,1.79460826,64500.0,64499.0,0.38424966]
[1719119397614,1.86438283,64500.0,64499.0,0.38424966]
[1719119398116,1.79460826,64500.0,64499.0,0.38424966]
[1719119398311,1.86438344,64500.0,64499.0,0.38424966]
[1719119400644,1.86438344,64500.0,64499.0,0.36741851]
[1719119400645,2.17446044,64500.0,64499.0,0.36741851]
[1719119400844,2.10468526,64500.0,64499.0,0.36741851]
[1719119401883,2.10478526,64500.0,64499.0,0.21485739]
[1719119402081,2.10478526,64500.0,64499.0,0.20521854]
[1719119402337,2.44970114,64500.0,64499.0,0.20521854]
[1719119402507,2.56617462,64500.0,64499.0,0.20521854]
[1719119402678,2.54986225,64500.0,64499.0,0.20521854]
[1719119402883,2.60176225,64500.0,64499.0,0.20521854]
[1719119403520,2.56676226,64500.0,64499.0,0.20521854]
[1719119403733,2.60205763,64500.0,64499.0,0.20521854]
[1719119404273,2.60205763,64500.0,64499.0,0.17721854]
[1719119404477,2.60205763,64500.0,64499.0,0.20521854]
[1719119409748,2.60215919,64500.0,64499.0,0.20521854]
[1719119410131,2.56676226,64500.0,64499.0,0.20521854]
[1719119410484,2.60216208,64500.0,64499.0,0.20521854]
[1719119412857,2.56676226,64500.0,64499.0,0.20521854]
[1719119413030,2.60231134,64500.0,64499.0,0.20521854]
[1719119416124,2.60233572,64500.0,64499.0,0.20521854]
[1719119418999,2.60259905,64500.0,64499.0,0.20521854]
[1719119419324,2.56676226,64500.0,64499.0,0.20521854]
[1719119419487,2.60259862,64500.0,64499.0,0.20521854]
[1719119422136,2.56676226,64500.0,64499.0,0.20521854]
[1719119422446,2.6023008,64500.0,64499.0,0.20521854]
[1719119423202,2.6023008,64500.0,64499.0,0.22204969]
[1719119423641,2.6023008,64500.0,64499.0,0.20521854]
[1719119428251,2.56676226,64500.0,64499.0,0.20521854]
[1719119428419,2.60209786,64500.0,64499.0,0.20521854]
[1719119428625,2.56676226,64500.0,64499.0,0.20521854]
[1719119429006,2.60205885,64500.0,64499.0,0.20521854]
[1719119431303,2.56676226,64500.0,64499.0,0.20521854]
[1719119431479,2.60208831,64500.0,64499.0,0.20521854]
[1719119434100,2.60368831,64500.0,64499.0,0.20521854]
[1719119434428,2.56836226,64500.0,64499.0,0.20521854]
[1719119434604,2.6038895,64500.0,64499.0,0.20521854]
[1719119437437,2.60381942,64500.0,64499.0,0.20521854]
[1719119437938,2.60381966,64500.0,64499.0,0.20521854]
[1719119439104,2.60382062,64500.0,64499.0,0.20521854]
[1719119440593,2.60385074,64500.0,64499.0,0.20521854]
[1719119441351,2.56836226,64500.0,64499.0,0.20521854]
[1719119441576,2.6038194,64500.0,64499.0,0.20521854]
[1719119443810,2.60379582,64500.0,64499.0,0.20521854]
[1719119445259,2.74349914,64500.0,64499.0,0.20521854]
[1719119446817,2.74358173,64500.0,64499.0,0.20521854]
[1719119448211,2.60383641,64500.0,64499.0,0.20521854]
[1719119450003,2.56836226,64500.0,64499.0,0.20521854]
[1719119450202,2.60379574,64500.0,64499.0,0.20521854]
[1719119451501,2.77137274,64500.0,64499.0,0.120635]
[1719119451707,2.85057274,64500.0,64499.0,0.120635]
[1719119453100,2.87553467,64500.0,64499.0,0.120635]
[1719119453630,2.85050937,64500.0,64499.0,0.120635]
[1719119456069,2.81513926,64500.0,64499.0,0.120635]
[1719119456237,2.85044411,64500.0,64499.0,0.120635]
[1719119457597,2.85047503,64500.0,64499.0,0.120635]
[1719119459188,2.81513926,64500.0,64499.0,0.120635]
[1719119459389,2.85046973,64500.0,64499.0,0.120635]
[1719119461644,2.85046926,64500.0,64499.0,0.120635]
[1719119463471,2.54458148,64500.0,64499.0,0.120635]
[1719119464709,2.54457088,64500.0,64499.0,0.120635]
[1719119465129,2.50925148,64500.0,64499.0,0.120635]
[1719119465326,2.54457974,64500.0,64499.0,0.120635]
[1719119466255,2.54458251,64500.0,64499.0,0.120635]
[1719119467846,2.54458691,64500.0,64499.0,0.120635]
[1719119470979,2.54458351,64500.0,64499.0,0.120635]
[1719119474091,2.54458234,64500.0,64499.0,0.120635]
[1719119474547,2.50925148,64500.0,64499.0,0.120635]
[1719119474730,2.54460658,64500.0,64499.0,0.120635]
[1719119477076,2.54458797,64500.0,64499.0,0.120635]
[1719119480319,2.54458856,64500.0,64499.0,0.120635]
[1719119483278,2.50925148,64500.0,64499.0,0.120635]
[1719119483475,2.54458867,64500.0,64499.0,0.120635]
[1719119483674,2.50925148,64500.0,64499.0,0.120635]
[1719119483885,2.54458867,64500.0,64499.0,0.120635]
[1719119484132,2.10341167,64500.0,64499.0,0.264335]
[1719119484649,2.11307513,64500.0,64499.0,0.264335]
[1719119486476,2.11691337,64500.0,64499.0,0.264335]
[1719119489290,2.06807448,64500.0,64499.0,0.264335]
[1719119489491,2.07773792,64500.0,64499.0,0.264335]
[1719119489669,2.11720624,64500.0,64499.0,0.264335]
[1719119492436,2.06807448,64500.0,64499.0,0.264335]
[1719119492584,2.1169352,64500.0,64499.0,0.264335]
[1719119492805,2.10727176,64500.0,64499.0,0.264335]
[1719119493004,2.1169352,64500.0,64499.0,0.264335]
[1719119495636,2.11672431,64500.0,64499.0,0.264335]
[1719119498594,2.06807448,64500.0,64499.0,0.264335]
[1719119498747,2.1166284,64500.0,64499.0,0.264335]
[1719119501605,2.11597929,64500.0,64499.0,0.264335]
[1719119502384,2.06807448,64500.0,64499.0,0.264335]
[1719119502532,2.1159907,64500.0,64499.0,0.264335]
[1719119503425,2.06807448,64500.0,64499.0,0.264335]
[1719119503595,2.11598968,64500.0,64499.0,0.264335]
[1719119504978,2.07773792,64500.0,64499.0,0.264335]
[1719119505164,2.11598072,64500.0,64499.0,0.264335]
[1719119507997,2.06807448,64500.0,64499.0,0.264335]
[1719119508197,2.11602231,64500.0,64499.0,0.264335]
[1719119510614,2.11611934,64500.0,64499.0,0.264335]
[1719119511191,2.10645701,64500.0,64499.0,0.264335]
[1719119511402,2.11611879,64500.0,64499.0,0.264335]
[1719119511635,2.06807448,64500.0,64499.0,0.264335]
[1719119511853,2.11611879,64500.0,64499.0,0.199435]
[1719119512924,2.11595239,64500.0,64499.0,0.199435]
[1719119514316,2.10629006,64500.0,64499.0,0.199435]
[1719119514591,2.11595197,64500.0,64499.0,0.199435]
[1719119517482,2.11588095,64500.0,64499.0,0.199435]
[1719119520652,2.11588289,64500.0,64499.0,0.199435]
[1719119521065,2.06807448,64500.0,64499.0,0.199435]
[1719119521265,2.11588332,64500.0,64499.0,0.199435]
[1719119522282,2.16778329,64500.0,64499.0,0.199435]
[1719119523005,2.16784096,64500.0,64499.0,0.199435]
[1719119526153,2.1679847,64500.0,64499.0,0.199435]
[1719119529122,2.11997448,64500.0,64499.0,0.199435]
[1719119529287,2.16799101,64500.0,64499.0,0.199435]
[1719119529487,2.11997448,64500.0,64499.0,0.199435]
[1719119529708,2.16799101,64500.0,64499.0,0.199435]
[1719119530791,2.16796906,64500.0,64499.0,0.199435]
[1719119532348,2.11997448,64500.0,64499.0,0.199435]
[1719119532510,2.16797695,64500.0,64499.0,0.199435]
[1719119535473,2.16797464,64500.0,64499.0,0.199435]
[1719119538345,2.11997448,64500.0,64499.0,0.199435]
[1719119538547,2.16797579,64500.0,64499.0,0.199435]
[1719119538738,2.11997448,64500.0,64499.0,0.199435]
[1719119538937,2.16797579,64500.0,64499.0,0.199435]
[1719119540130,2.16789581,64500.0,64499.0,0.199435]
[1719119541504,2.11997448,64500.0,64499.0,0.199435]
[1719119541786,2.16788277,64500.0,64499.0,0.199435]
[1719119544592,2.16782896,64500.0,64499.0,0.199435]
[1719119547698,2.16782707,64500.0,64499.0,0.199435]
[1719119548124,2.11997448,64500.0,64499.0,0.199435]
[1719119548327,2.1677734,64500.0,64499.0,0.199435]
[1719119550273,2.1677734,64500.0,64499.0,0.120635]
[1719119550601,2.11997448,64500.0,64499.0,0.120635]
[1719119550801,2.16782848,64500.0,64499.0,0.120635]
[1719119553155,2.11592848,64500.0,64499.0,0.120635]
[1719119553510,2.16782848,64500.0,64499.0,0.120635]
[1719119553737,2.11997448,64500.0,64499.0,0.120635]
[1719119553937,2.16699515,64500.0,64499.0,0.120635]
[1719119556799,2.11997448,64500.0,64499.0,0.120635]
[1719119556947,2.16709203,64500.0,64499.0,0.120635]
[1719119557157,2.11997448,64500.0,64499.0,0.120635]
[1719119557331,2.16714651,64500.0,64499.0,0.120635]
[1719119559832,2.11997448,64500.0,64499.0,0.120635]
[1719119560079,2.16714604,64500.0,64499.0,0.120635]
[1719119561818,2.16714715,64500.0,64499.0,0.120635]
[1719119563160,2.16714963,64500.0,64499.0,0.120635]
[1719119566402,2.16714805,64500.0,64499.0,0.120635]
[1719119566739,2.1574856,64500.0,64499.0,0.120635]
[1719119566974,2.16714806,64500.0,64499.0,0.120635]
[1719119569384,2.16716502,64500.0,64499.0,0.120635]
[1719119572620,2.16719733,64500.0,64499.0,0.120635]
[1719119575689,2.16720226,64500.0,64499.0,0.120635]
[1719119576292,2.11530226,64500.0,64499.0,0.13746615]
[1719119576670,2.16720226,64500.0,64499.0,0.13746615]
[1719119578785,2.20754318,64500.0,64499.0,0.13746615]
[1719119579011,2.16859006,64500.0,64499.0,0.13746615]
[1719119581152,2.16863294,64500.0,64499.0,0.13746615]
[1719119582886,2.16863294,64500.0,64499.0,0.120635]
[1719119583874,2.11673294,64500.0,64499.0,0.13746615]
[1719119584269,2.16869768,64500.0,64499.0,0.13746615]
[1719119584582,2.11997448,64500.0,64499.0,0.13746615]
[1719119584786,2.11712824,64500.0,64499.0,0.13746615]
[1719119584987,2.16902824,64500.0,64499.0,0.13746615]
[1719119585950,2.16981316,64500.0,64499.0,0.13746615]
[1719119587291,2.11997448,64500.0,64499.0,0.13746615]
[1719119587606,2.16981232,64500.0,64499.0,0.13746615]
[1719119590533,2.16981298,64500.0,64499.0,0.13746615]
[1719119591064,1.87465847,64500.0,64499.0,0.13746615]
[1719119593103,1.87465816,64500.0,64499.0,0.13746615]
[1719119593571,1.82481997,64500.0,64499.0,0.13746615]
[1719119593769,1.87466045,64500.0,64499.0,0.13746615]
[1719119596607,1.82481997,64500.0,64499.0,0.13746615]
[1719119596816,1.87466002,64500.0,64499.0,0.13746615]
[1719119598693,1.56458302,64500.0,64499.0,0.13746615]
[1719119602810,1.56452015,64500.0,64499.0,0.13746615]
[1719119603195,1.52440525,64500.0,64499.0,0.13746615]
[1719119603393,1.56452015,64500.0,64499.0,0.13746615]
[1719119606063,1.56451813,64500.0,64499.0,0.13746615]
[1719119607523,1.56451813,64500.0,64499.0,0.120635]
[1719119607725,1.56451813,64500.0,64499.0,0.13746615]
[1719119609116,1.5644687,64500.0,64499.0,0.13746615]
[1719119609628,1.5125687,64500.0,64499.0,0.13746615]
[1719119609829,1.5644687,64500.0,64499.0,0.13746615]
[1719119612033,1.51474297,64500.0,64499.0,0.13746615]
[1719119612273,1.56451766,64500.0,64499.0,0.13746615]
[1719119613093,1.56451766,64500.0,64499.0,0.120635]
[1719119613338,1.56451766,64500.0,64499.0,0.13746615]
[1719119614961,1.56451766,64500.0,64499.0,0.120635]
[1719119615119,1.56451766,64500.0,64499.0,0.13746615]
[1719119615435,1.56348816,64500.0,64499.0,0.13746615]
[1719119616879,1.51158816,64500.0,64499.0,0.13746615]
[1719119617876,1.51158816,64500.0,64499.0,0.120635]
[1719119618066,1.51158816,64500.0,64499.0,0.13219029]
[1719119618439,1.64169175,64500.0,64499.0,0.13219029]
[1719119618643,1.65135396,64500.0,64499.0,0.13219029]
[1719119619049,1.51158166,64500.0,64499.0,0.13219029]
[1719119619261,1.51158166,64500.0,64499.0,0.14902144]
[1719119619639,1.51158166,64500.0,64499.0,0.13219029]
[1719119621462,1.51158166,64500.0,64499.0,0.14902144]
[1719119621463,1.5113266,64500.0,64499.0,0.14902144]
[1719119621775,1.46284297,64500.0,64499.0,0.14902144]
[1719119622145,1.51132661,64500.0,64499.0,0.14902144]
[1719119624729,1.51132814,64500.0,64499.0,0.14902144]
[1719119627841,1.51134263,64500.0,64499.0,0.14902144]
[1719119628594,1.51134263,64500.0,64499.0,0.13219029]
[1719119631094,1.51129637,64500.0,64499.0,0.13219029]
[1719119631585,1.51131295,64500.0,64499.0,0.13219029]
[1719119631959,1.51131295,64500.0,64499.0,0.120635]
[1719119632352,1.65106757,64500.0,64499.0,0.13746615]
[1719119632555,1.51131295,64500.0,64499.0,0.13746615]
[1719119632796,1.65106757,64500.0,64499.0,0.13746615]
[1719119632942,1.51131295,64500.0,64499.0,0.120635]
[1719119633145,1.51131295,64500.0,64499.0,0.13746615]
[1719119634086,1.51145454,64500.0,64499.0,0.13746615]
[1719119634260,1.65119262,64500.0,64499.0,0.13746615]
[1719119634679,1.65119262,64500.0,64499.0,0.120635]
[1719119635926,1.51145454,64500.0,64499.0,0.120635]
[1719119637101,1.51124375,64500.0,64499.0,0.120635]
[1719119637707,1.65099849,64500.0,64499.0,0.120635]
[1719119638134,1.51124375,64500.0,64499.0,0.120635]
[1719119638492,1.65099861,64500.0,64499.0,0.120635]
[1719119640246,1.50131406,64500.0,64499.0,0.120635]
[1719119640478,1.65073148,64500.0,64499.0,0.120635]
[1719119640688,1.65070438,64500.0,64499.0,0.120635]
[1719119642438,1.46284297,64500.0,64499.0,0.120635]
[1719119642571,1.65070715,64500.0,64499.0,0.120635]
[1719119645577,1.60259405,64500.0,64499.0,0.120635]
[1719119645785,1.51091187,64500.0,64499.0,0.120635]
[1719119645986,1.65066295,64500.0,64499.0,0.120635]
[1719119646189,1.51091187,64500.0,64499.0,0.120635]
[1719119648628,1.51064695,64500.0,64499.0,0.120635]
[1719119649051,1.64075357,64500.0,64499.0,0.120635]
[1719119649253,1.5106661,64500.0,64499.0,0.120635]
[1719119649462,1.65041705,64500.0,64499.0,0.120635]
[1719119650182,1.91267092,64500.0,64499.0,0.120635]
[1719119650381,1.82089158,64500.0,64499.0,0.120635]
[1719119654253,1.96062331,64500.0,64499.0,0.120635]
[1719119654817,1.77291997,64500.0,64499.0,0.120635]
[1719119655041,1.96064582,64500.0,64499.0,0.120635]
[1719119655337,1.51081862,64500.0,64499.0,0.120635]
[1719119655522,1.82089562,64500.0,64499.0,0.120635]
[1719119656324,1.96064582,64500.0,64499.0,0.120635]
[1719119656547,1.82089562,64500.0,64499.0,0.120635]
[1719119657326,1.96064582,64500.0,64499.0,0.120635]
[1719119657526,1.82089562,64500.0,64499.0,0.120635]
[1719119657926,1.77291997,64500.0,64499.0,0.120635]
[1719119658150,1.82074495,64500.0,64499.0,0.120635]
[1719119659718,1.8207491,64500.0,64499.0,0.120635]
[1719119660998,1.77291997,64500.0,64499.0,0.120635]
[1719119661194,1.82086023,64500.0,64499.0,0.120635]
[1719119662379,1.96059412,64500.0,64499.0,0.120635]
[1719119663343,1.82086023,64500.0,64499.0,0.120635]
[1719119664245,1.82086374,64500.0,64499.0,0.120635]
[1719119667159,1.82086496,64500.0,64499.0,0.120635]
[1719119668741,1.82086854,64500.0,64499.0,0.120635]
[1719119670181,1.82087051,64500.0,64499.0,0.120635]
[1719119671633,1.87277051,64500.0,64499.0,0.120635]
[1719119673695,2.01252849,64500.0,64499.0,0.120635]
[1719119676477,2.01256274,64500.0,64499.0,0.120635]
[1719119676692,1.83448337,64500.0,64499.0,0.120635]
[1719119676937,2.01256273,64500.0,64499.0,0.120635]
[1719119677313,2.01256319,64500.0,64499.0,0.120635]
[1719119678141,2.01256244,64500.0,64499.0,0.120635]
[1719119679656,2.01233855,64500.0,64499.0,0.120635]
[1719119682105,1.82481997,64500.0,64499.0,0.120635]
[1719119682725,2.01206152,64500.0,64499.0,0.120635]
[1719119683329,1.96457654,64500.0,64499.0,0.120635]
[1719119683572,2.01206384,64500.0,64499.0,0.120635]
[1719119683970,1.82481997,64500.0,64499.0,0.120635]
[1719119685053,1.8344834,64500.0,64499.0,0.120635]
[1719119686249,2.01206645,64500.0,64499.0,0.120635]
[1719119687270,2.18238427,64500.0,64499.0,0.120635]
[1719119688222,2.18238427,64500.0,64499.0,0.12056523]
[1719119689441,2.18238427,64500.0,64499.0,0.11556523]
[1719119689638,2.18203247,64500.0,64499.0,0.11556523]
[1719119690014,2.13454517,64500.0,64499.0,0.11556523]
[1719119690365,2.18209521,64500.0,64499.0,0.11556523]
[1719119690656,2.18210545,64500.0,64499.0,0.11556523]
[1719119691843,2.18211061,64500.0,64499.0,0.11556523]
[1719119693770,2.13454517,64500.0,64499.0,0.11556523]
[1719119693971,2.18210163,64500.0,64499.0,0.11556523]
[1719119695471,1.87202463,64500.0,64499.0,0.11556523]
[1719119697217,2.01178425,64500.0,64499.0,0.11556523]
[1719119697549,2.18211141,64500.0,64499.0,0.11556523]
[1719119700221,2.13454517,64500.0,64499.0,0.11556523]
[1719119700446,2.18218719,64500.0,64499.0,0.11556523]
[1719119700645,2.13454517,64500.0,64499.0,0.11556523]
[1719119700795,2.18219892,64500.0,64499.0,0.11556523]
[1719119702458,2.13454517,64500.0,64499.0,0.11556523]
[1719119702659,2.18179553,64500.0,64499.0,0.11556523]
[1719119705760,2.18144254,64500.0,64499.0,0.11556523]
[1719119705961,2.20901243,64500.0,64499.0,0.11556523]
[1719119706187,2.18144254,64500.0,64499.0,0.11556523]
[1719119708683,2.14420891,64500.0,64499.0,0.11556523]
[1719119708888,2.18144454,64500.0,64499.0,0.11556523]
[1719119711790,2.13454517,64500.0,64499.0,0.11556523]
[1719119711997,2.1812211,64500.0,64499.0,0.11556523]
[1719119713458,2.17155735,64500.0,64499.0,0.11556523]
[1719119714858,2.13454517,64500.0,64499.0,0.11556523]
[1719119715076,2.17130958,64500.0,64499.0,0.11556523]
[1719119715786,2.1809735,64500.0,64499.0,0.11556523]
[1719119717938,2.13454517,64500.0,64499.0,0.11556523]
[1719119718148,2.18103908,64500.0,64499.0,0.11556523]
[1719119718770,2.17137516,64500.0,64499.0,0.11556523]
[1719119721130,2.13454517,64500.0,64499.0,0.11556523]
[1719119721297,2.17130745,64500.0,64499.0,0.11556523]
[1719119722234,2.20683642,64500.0,64499.0,0.11556523]
[1719119722433,4.05230742,64500.0,64499.0,0.11556523]
[1719119722644,4.14905006,64500.0,64499.0,0.11556523]
[1719119722850,4.45912706,64500.0,64499.0,0.11556523]
[1719119723190,4.45912706,64500.0,64499.0,0.10156523]
[1719119723789,4.61168818,64500.0,64499.0,0.10156523]
[1719119724018,4.47818326,64500.0,64499.0,0.09756523]
[1719119724221,4.6196021,64500.0,64499.0,0.09756523]
[1719119724398,4.6196021,64500.0,64499.0,0.10856523]
[1719119726256,4.32034859,64500.0,64499.0,0.10856523]
[1719119727193,4.33400586,64500.0,64499.0,0.10856523]
[1719119727399,4.29847689,64500.0,64499.0,0.10856523]
[1719119727597,4.14340078,64500.0,64499.0,0.10856523]
[1719119727799,4.29847688,64500.0,64499.0,0.10856523]
[1719119730342,4.29846856,64500.0,64499.0,0.10856523]
[1719119732816,4.45545595,64500.0,64499.0,0.10856523]
[1719119733336,4.60801121,64500.0,64499.0,0.10856523]
[1719119734161,4.67015421,64500.0,64499.0,0.10856523]
[1719119734560,4.57833632,64500.0,64499.0,0.10856523]
[1719119736104,4.67016869,64500.0,64499.0,0.10856523]
[1719119736513,4.6702072,64500.0,64499.0,0.10856523]
[1719119736873,4.67018257,64500.0,64499.0,0.10856523]
[1719119738051,4.67032256,64500.0,64499.0,0.10856523]
[1719119738625,4.87032256,64500.0,64499.0,0.10856523]
[1719119739386,4.55809792,64500.0,64499.0,0.10856523]
[1719119739593,4.87031986,64500.0,64499.0,0.10856523]
[1719119742565,4.55809792,64500.0,64499.0,0.10856523]
[1719119742773,4.87031565,64500.0,64499.0,0.10856523]
[1719119745572,4.71336837,64500.0,64499.0,0.10856523]
[1719119745774,4.87032618,64500.0,64499.0,0.10856523]
[1719119746213,4.87032886,64500.0,64499.0,0.10856523]
[1719119746893,4.67032904,64500.0,64499.0,0.10856523]
[1719119747557,4.67031969,64500.0,64499.0,0.10856523]
[1719119752103,4.67033535,64500.0,64499.0,0.10856523]
[1719119752444,4.51336859,64500.0,64499.0,0.10856523]
[1719119755034,4.79656859,64500.0,64499.0,0.10856523]
[1719119755196,4.79658708,64500.0,64499.0,0.10856523]
[1719119756453,4.52537931,64500.0,64499.0,0.10856523]
[1719119756660,4.37282517,64500.0,64499.0,0.10856523]
[1719119756859,4.37281859,64500.0,64499.0,0.10856523]
[1719119758496,4.37282832,64500.0,64499.0,0.10856523]
[1719119760907,4.21753601,64500.0,64499.0,0.10856523]
[1719119761077,4.37280492,64500.0,64499.0,0.10856523]
[1719119761460,4.52535905,64500.0,64499.0,0.10856523]
[1719119762581,4.37280491,64500.0,64499.0,0.10856523]
[1719119763857,4.37280813,64500.0,64499.0,0.10856523]
[1719119764282,4.37281838,64500.0,64499.0,0.10856523]
[1719119766423,4.37280167,64500.0,64499.0,0.10856523]
[1719119767123,4.31020167,64500.0,64499.0,0.10856523]
[1719119767378,4.46275581,64500.0,64499.0,0.10856523]
[1719119769892,4.46279978,64500.0,64499.0,0.10856523]
[1719119771771,4.46279978,64500.0,64499.0,0.07879523]
[1719119771911,4.72289978,64500.0,64499.0,0.07879523]
[1719119772976,4.72032029,64500.0,64499.0,0.07879523]
[1719119773181,4.70762006,64500.0,64499.0,0.07879523]
[1719119773380,4.7203342,64500.0,64499.0,0.07879523]
[1719119775585,4.5203342,64500.0,64499.0,0.07879523]
[1719119775858,4.36759015,64500.0,64499.0,0.07879523]
[1719119776058,2.81504761,64500.0,64499.0,0.07879523]
[1719119776387,5.25516061,64500.0,64499.0,0.07879523]
[1719119778980,5.25524727,64500.0,64499.0,0.07879523]
[1719119782149,5.25528488,64500.0,64499.0,0.07879523]
[1719119782571,5.11531357,64500.0,64499.0,0.07879523]
[1719119782799,5.25531094,64500.0,64499.0,0.07879523]
[1719119784713,5.25531094,64500.0,64499.0,0.06579523]
[1719119785109,5.10263215,64500.0,64499.0,0.06579523]
[1719119785354,5.25557201,64500.0,64499.0,0.06579523]
[1719119785511,5.27098847,64500.0,64499.0,0.06579523]
[1719119785715,5.47098847,64500.0,64499.0,0.06579523]
[1719119786333,5.27098847,64500.0,64499.0,0.06579523]
[1719119788288,5.27105768,64500.0,64499.0,0.06579523]
[1719119790223,5.47105768,64500.0,64499.0,0.06579523]
[1719119791011,2.72777825,64500.0,64499.0,0.06579523]
[1719119791192,2.57476918,64500.0,64499.0,0.06579523]
[1719119791400,5.16788862,64500.0,64499.0,0.06579523]
[1719119791602,4.82768095,64500.0,64499.0,0.06579523]
[1719119791806,5.16788047,64500.0,64499.0,0.06579523]
[1719119792108,4.96788047,64500.0,64499.0,1e-08]
[1719119792346,2.52776747,64500.0,64499.0,1e-08]
[1719119792543,2.72776747,64500.0,64499.0,1e-08]
[1719119792966,2.52774223,64500.0,64499.0,1e-08]
[1719119793169,2.72774223,64500.0,64499.0,1e-08]
[1719119793573,2.52774223,64500.0,64499.0,1e-08]
[1719119793782,2.72774223,64500.0,64499.0,1e-08]
[1719119794403,2.43177369,64500.0,64499.0,1e-08]
[1719119794604,2.44457023,64500.0,64499.0,1e-08]
[1719119795555,2.24457023,64500.0,64499.0,1e-08]
[1719119795978,2.44457023,64500.0,64499.0,1e-08]
[1719119796459,2.24457023,64500.0,64499.0,1e-08]
[1719119796865,2.44457023,64500.0,64499.0,1e-08]
[1719119797291,2.29156918,64500.0,64499.0,1e-08]
[1719119797490,2.44475443,64500.0,64499.0,1e-08]
[1719119800454,2.29156918,64500.0,64499.0,1e-08]
[1719119800592,2.44537487,64500.0,64499.0,1e-08]